bitfinex-derivatives/quotes_SOLF0:USTF0_20241217
["timestamp","ask_amount","ask_price","bid_price","bid_amount"]
[1734443003528,2.2287,224.38,224.34,4.98744945]
[1734443003831,2.2287,224.38,224.33,8.37904267]
[1734443004033,2.2287,224.38,224.34,4.98741829]
[1734443004234,2.2285,224.4,224.35,7.21659344]
[1734443004425,2.2285,224.4,224.36,4.98788844]
[1734443004733,2.2285,224.4,224.37,4.98777454]
[1734443004931,2.2285,224.4,224.35,8.37884267]
[1734443005131,7.68310132,224.46,224.34,18.4599913]
[1734443005132,10.50338919,224.41,224.36,11.13769293]
[1734443005427,2.1681,224.45,224.32,8.11994267]
[1734443005630,2.229,224.35,224.32,1.97]
[1734443005929,10.50338919,224.42,224.31,6.4588]
[1734443007135,4.5281,224.45,224.31,6.4588]
[1734443007324,2.36,224.45,224.34,6.14994267]
[1734443007524,2.2284,224.41,224.35,4.98938135]
[1734443007727,2.2284,224.41,224.36,7.34938135]
[1734443007932,2.2284,224.41,224.37,4.98938135]
[1734443008133,2.2284,224.41,224.38,4.98869275]
[1734443008431,2.2284,224.41,224.37,8.37864267]
[1734443008631,2.2284,224.41,224.38,4.98857988]
[1734443008823,2.2284,224.41,224.37,8.37864267]
[1734443009026,2.2284,224.41,224.38,11.13845132]
[1734443009227,2.2281,224.44,224.39,7.21680578]
[1734443009430,2.36,224.49,224.4,4.98811239]
[1734443009623,10.50338919,224.5,224.39,2.2285]
[1734443009822,10.50338919,224.5,224.4,7.21635445]
[1734443010025,10.50338919,224.5,224.41,4.98796623]
[1734443010232,10.50338919,224.5,224.4,8.37834267]
[1734443010532,10.50338919,224.5,224.41,4.9865214]
[1734443010734,10.50338919,224.5,224.42,4.9865214]
[1734443011030,2.2283,224.41,224.4,6.14994267]
[1734443011225,10.50338919,224.47,224.37,6.14994267]
[1734443011434,10.50338919,224.47,224.38,4.98693439]
[1734443011632,10.50338919,224.47,224.37,6.14994267]
[1734443011633,2.2285,224.39,224.37,6.14994267]
[1734443011834,2.2285,224.39,224.36,6.14994267]
[1734443012132,2.2286,224.38,224.37,4.98723218]
[1734443012334,2.36,224.46,224.35,8.50994267]
[1734443012629,10.50338919,224.44,224.34,6.14994267]
[1734443012832,2.229,224.34,224.32,8.50994267]
[1734443013027,12.86338919,224.41,224.33,4.98839536]
[1734443013331,2.2286,224.39,224.36,6.14994267]
[1734443013531,2.2286,224.39,224.37,4.98839536]
[1734443013732,2.2286,224.39,224.35,6.14994267]
[1734443013733,2.2286,224.39,224.36,6.14994267]
[1734443013936,2.2286,224.39,224.37,4.98921141]
[1734443014127,2.2285,224.4,224.36,6.14994267]
[1734443014331,2.2285,224.4,224.37,11.13907152]
[1734443014533,2.2285,224.4,224.38,4.98912885]
[1734443014832,2.2285,224.4,224.36,8.37874267]
[1734443015135,2.2285,224.4,224.37,11.1405564]
[1734443015429,2.2285,224.4,224.38,4.99061373]
[1734443015634,2.2285,224.4,224.37,6.14994267]
[1734443015829,10.50338919,224.47,224.38,4.99043196]
[1734443016136,15.82387521,224.5,224.4,6.14994267]
[1734443016332,15.82387521,224.5,224.41,4.99040697]
[1734443016537,2.228,224.45,224.41,2.2283]
[1734443017135,2.2278,224.47,224.42,4.98876445]
[1734443017441,2.2278,224.47,224.41,6.14994267]
[1734443017737,2.2278,224.47,224.42,4.98720769]
[1734443018038,2.2278,224.47,224.4,6.14994267]
[1734443018335,2.2278,224.47,224.41,4.98720769]
[1734443018538,2.2278,224.47,224.43,2.2281]
[1734443019033,12.86338919,224.53,224.43,2.2281]
[1734443020128,2.0568,224.57,224.47,2.2277]
[1734443020129,10.50338919,224.56,224.47,2.2277]
[1734443020439,2.0262,224.58,224.47,2.2277]
[1734443020440,10.50338919,224.58,224.47,2.2277]
[1734443020638,2.2273,224.52,224.48,2.2276]
[1734443021535,5.38267403,224.64,224.5,10.50338919]
[1734443021739,5.38267403,224.64,224.51,4.97897288]
[1734443022046,5.38267403,224.64,224.52,2.36]
[1734443022336,10.50338919,224.66,224.52,2.36]
[1734443022544,2.2264,224.61,224.55,2.227]
[1734443022937,2.2264,224.61,224.52,2.36]
[1734443023136,2.2264,224.61,224.55,2.2269]
[1734443023337,2.2264,224.61,224.53,10.50338919]
[1734443023540,2.2261,224.64,224.53,12.54108919]
[1734443023750,10.50338919,224.66,224.54,2.227]
[1734443024041,2.2268,224.57,224.49,6.14994267]
[1734443024248,5.39933693,224.67,224.49,2.36]
[1734443024249,10.50338919,224.6,224.49,2.36]
[1734443024541,5.39933693,224.67,224.49,2.36]
[1734443024542,2.2268,224.57,224.49,2.36]
[1734443024746,2.2268,224.57,224.53,2.0609]
[1734443024951,2.36,224.63,224.53,2.0609]
[1734443025242,2.2271,224.54,224.53,2.0609]
[1734443025647,10.50338919,224.61,224.48,2.36]
[1734443025847,2.2272,224.53,224.48,2.36]
[1734443026248,2.2273,224.52,224.48,2.36]
[1734443027143,2.2273,224.52,224.48,4.5876]
[1734443027350,10.50338919,224.61,224.48,12.86338919]
[1734443027550,2.1839,224.62,224.52,2.2273]
[1734443027751,2.1839,224.62,224.48,12.86338919]
[1734443028141,2.2267,224.58,224.51,2.2273]
[1734443028443,2.1839,224.62,224.48,12.86338919]
[1734443029049,2.36,224.63,224.48,12.86338919]
[1734443029551,2.2269,224.57,224.52,2.2272]
[1734443029749,2.36,224.63,224.52,4.5872]
[1734443030254,2.36,224.63,224.53,2.2271]
[1734443030452,2.36,224.63,224.52,2.36]
[1734443030756,2.36,224.63,224.48,10.50338919]
[1734443030757,10.50338919,224.61,224.48,10.50338919]
[1734443030960,10.50338919,224.61,224.48,2.34]
[1734443031355,2.2273,224.52,224.48,4.5676]
[1734443032152,2.34,224.57,224.45,4.0367]
[1734443032354,10.50338919,224.55,224.39,10.50338919]
[1734443032551,10.50338919,224.52,224.39,14.98088919]
[1734443032860,10.50338919,224.49,224.35,18.99333186]
[1734443033055,10.50338919,224.49,224.36,4.96403981]
[1734443033249,10.50338919,224.49,224.35,18.99333186]
[1734443033250,2.228,224.45,224.37,2.2287]
[1734443033453,2.228,224.45,224.38,10.50338919]
[1734443033656,2.0044,224.51,224.36,11.41593615]
[1734443033657,10.50338919,224.49,224.36,11.41593615]
[1734443033857,10.50338919,224.49,224.36,5.26599348]
[1734443034061,2.2285,224.4,224.36,5.26599348]
[1734443034560,2.36,224.47,224.36,5.26599348]
[1734443034851,2.2284,224.41,224.36,7.49479348]
[1734443035058,2.2284,224.41,224.36,9.85479348]
[1734443035252,2.36,224.47,224.36,9.85479348]
[1734443035449,2.2285,224.4,224.36,9.85479348]
[1734443035649,2.2285,224.4,224.36,7.62599348]
[1734443035856,2.2284,224.41,224.36,7.62599348]
[1734443036254,10.50338919,224.49,224.36,7.62599348]
[1734443036455,6.0997,224.51,224.38,10.50338919]
[1734443036652,6.0997,224.51,224.39,4.96582851]
[1734443036653,2.0044,224.51,224.39,4.96582851]
[1734443036853,10.50338919,224.53,224.39,2.2285]
[1734443037153,10.50338919,224.5,224.39,2.2285]
[1734443038456,2.228,224.45,224.4,2.2284]
[1734443039561,2.228,224.45,224.38,12.86338919]
[1734443039562,2.2281,224.44,224.39,2.2285]
[1734443039954,2.36,224.49,224.36,6.14994267]
[1734443040159,10.50338919,224.47,224.35,12.86338919]
[1734443040360,10.50338919,224.47,224.36,4.96957333]
[1734443040553,2.2285,224.4,224.35,7.79136422]
[1734443040952,10.50338919,224.47,224.34,8.28744267]
[1734443040953,2.36,224.44,224.34,8.28744267]
[1734443041159,12.86338919,224.44,224.32,12.86338919]
[1734443041351,12.86338919,224.44,224.33,4.97181679]
[1734443041553,12.86338919,224.44,224.32,19.01333186]
[1734443041757,2.2289,224.36,224.33,4.97152969]
[1734443041961,2.2289,224.36,224.32,10.50338919]
[1734443042262,2.229,224.35,224.31,2.1084]
[1734443042453,2.36,224.39,224.28,3.9929]
[1734443042956,2.36,224.39,224.28,1.9824]
[1734443043362,2.36,224.39,224.29,10.50338919]
[1734443043857,2.2287,224.38,224.32,2.2292]
[1734443044058,2.2287,224.38,224.29,10.50338919]
[1734443044263,10.50338919,224.44,224.32,10.50338919]
[1734443044461,2.34,224.45,224.33,2.34]
[1734443044857,14.47418919,224.47,224.35,10.50338919]
[1734443045059,2.34,224.46,224.35,10.50338919]
[1734443045261,2.34,224.46,224.38,2.2286]
[1734443045262,2.2282,224.43,224.38,2.2286]
[1734443045665,2.34,224.46,224.35,10.50338919]
[1734443045865,2.34,224.46,224.36,2.34]
[1734443046164,2.2282,224.43,224.36,2.34]
[1734443046465,10.50338919,224.5,224.36,2.34]
[1734443046466,2.34,224.48,224.36,2.34]
[1734443046659,2.228,224.45,224.4,2.2284]
[1734443046865,2.34,224.48,224.36,2.34]
[1734443047065,10.50338919,224.47,224.36,2.34]
[1734443047262,10.50338919,224.47,224.36,4.5688]
[1734443047263,2.2284,224.41,224.36,4.5688]
[1734443047567,10.50338919,224.47,224.36,2.34]
[1734443047763,2.2281,224.44,224.39,2.2285]
[1734443047959,2.2281,224.44,224.36,2.34]
[1734443048366,2.2281,224.44,224.4,2.2284]
[1734443048661,2.2279,224.47,224.41,2.34]
[1734443048864,2.2279,224.47,224.42,2.34]
[1734443049963,12.84338919,224.53,224.42,2.34]
[1734443050355,10.50338919,224.53,224.45,2.2279]
[1734443052164,10.50338919,224.56,224.46,2.2278]
[1734443052366,10.50338919,224.56,224.47,2.34]
[1734443052960,9.90463438,224.58,224.47,2.34]
[1734443053163,2.1022,224.58,224.47,2.34]
[1734443053365,44.86458604,224.59,224.47,2.34]
[1734443054169,42.52458604,224.59,224.47,2.34]
[1734443054461,42.52458604,224.59,224.48,13.26803704]
[1734443054462,44.86458604,224.59,224.48,13.26803704]
[1734443054668,2.2272,224.53,224.49,4.96699437]
[1734443054968,2.2272,224.53,224.48,2.1511]
[1734443055367,2.2274,224.51,224.48,2.1511]
[1734443055972,44.86458604,224.59,224.48,4.3787]
[1734443056269,44.86458604,224.59,224.48,2.1511]
[1734443056865,44.86458604,224.59,224.49,2.34]
[1734443057064,42.52458604,224.59,224.49,2.34]
[1734443057267,2.2269,224.56,224.51,2.2274]
[1734443057466,32.02119685,224.59,224.51,2.2274]
[1734443058265,2.2271,224.54,224.5,2.2275]
[1734443058868,2.2273,224.52,224.49,2.34]
[1734443059471,2.2274,224.51,224.49,2.34]
[1734443059672,42.52458604,224.59,224.49,2.34]
[1734443060168,5.38586003,224.62,224.49,2.34]
[1734443060374,10.50338919,224.6,224.49,2.34]
[1734443060766,10.50338919,224.57,224.48,2.1511]
[1734443060967,10.50338919,224.57,224.45,4.3153]
[1734443060968,12.84338919,224.57,224.45,4.3153]
[1734443061166,2.2276,224.49,224.45,4.3153]
[1734443061768,2.2276,224.49,224.45,1.9753]
[1734443061974,2.2277,224.48,224.45,1.9753]
[1734443062370,10.50338919,224.54,224.42,5.21526234]
[1734443063581,2.2278,224.47,224.43,2.2281]
[1734443063776,2.2278,224.47,224.42,5.21526234]
[1734443063777,2.34,224.52,224.42,5.21526234]
[1734443064282,2.2279,224.46,224.42,5.21526234]
[1734443065381,2.2282,224.43,224.41,2.1664]
[1734443065582,10.50338919,224.51,224.4,4.316]
[1734443065885,10.50338919,224.51,224.38,16.65333186]
[1734443066086,2.2283,224.42,224.39,4.94343367]
[1734443066277,2.2283,224.42,224.38,4.5686]
[1734443066482,2.2283,224.42,224.39,5.315853]
[1734443066683,10.50338919,224.51,224.38,2.34]
[1734443066984,10.50338919,224.48,224.37,6.14994267]
[1734443067179,10.50338919,224.48,224.36,12.79234267]
[1734443067383,10.50338919,224.48,224.37,7.17219688]
[1734443067589,10.50338919,224.48,224.38,4.94349688]
[1734443067782,2.34,224.47,224.37,2.2287]
[1734443068883,2.34,224.47,224.36,10.56354267]
[1734443069086,10.50338919,224.45,224.34,6.14994267]
[1734443069387,10.50338919,224.45,224.32,21.12073186]
[1734443069587,10.50338919,224.45,224.33,4.94400943]
[1734443069785,2.2288,224.37,224.32,23.34993186]
[1734443069977,2.2288,224.37,224.33,4.9440292]
[1734443070186,10.50338919,224.45,224.33,4.9440292]
[1734443070187,10.50338919,224.45,224.33,5.25182912]
[1734443070386,2.2289,224.36,224.33,5.25182912]
[1734443070584,2.2289,224.36,224.32,14.97078919]
[1734443071586,2.2289,224.36,224.32,17.19998919]
[1734443073189,2.2289,224.36,224.32,22.50269061]
[1734443074084,2.2289,224.36,224.32,20.37529061]
[1734443075789,2.2289,224.36,224.32,9.87190142]
[1734443076092,2.34,224.41,224.32,5.30270142]
[1734443076392,2.229,224.35,224.3,2.2294]
[1734443076784,2.34,224.41,224.3,2.2294]
[1734443077092,2.229,224.34,224.31,2.2293]
[1734443077492,2.34,224.41,224.31,2.2293]
[1734443078191,2.229,224.35,224.31,2.2293]
[1734443079888,2.2291,224.34,224.31,2.2293]
[1734443080693,2.2291,224.34,224.31,7.56786303]
[1734443081514,2.2291,224.34,224.31,5.33856303]
[1734443083002,2.2291,224.34,224.31,7.56786303]
[1734443084798,2.2291,224.34,224.31,5.33856303]
[1734443091797,12.84338919,224.39,224.27,6.14994267]
[1734443091999,12.84338919,224.39,224.26,12.84338919]
[1734443092403,12.84338919,224.39,224.26,15.07318919]
[1734443093104,2.2295,224.3,224.27,2.2297]
[1734443095401,2.2295,224.3,224.28,4.94877823]
[1734443095610,2.2295,224.3,224.27,8.37964267]
[1734443095805,10.50338919,224.36,224.28,4.95288165]
[1734443096005,10.50338919,224.36,224.25,6.14994267]
[1734443096213,2.2297,224.28,224.26,4.95322535]
[1734443096407,2.2297,224.28,224.25,6.14994267]
[1734443096609,2.2297,224.28,224.26,11.10507656]
[1734443096809,2.2297,224.28,224.25,6.14994267]
[1734443097006,2.2297,224.28,224.26,4.95513318]
[1734443097309,2.34,224.28,224.18,20.6905913]
[1734443097506,2.34,224.28,224.19,4.95842216]
[1734443097706,2.2301,224.24,224.2,4.95842216]
[1734443098010,2.2301,224.24,224.21,4.95469483]
[1734443098201,2.2302,224.23,224.19,20.6904913]
[1734443098403,2.2302,224.23,224.2,4.93925508]
[1734443098602,2.2302,224.23,224.19,18.4599913]
[1734443098603,2.2302,224.23,224.21,4.93925508]
[1734443098802,2.2302,224.23,224.18,18.4599913]
[1734443099005,2.2302,224.23,224.19,4.93864546]
[1734443099201,2.34,224.28,224.18,18.4599913]
[1734443099202,2.34,224.28,224.2,4.93864546]
[1734443099405,2.2302,224.23,224.18,26.14802875]
[1734443099603,2.2302,224.23,224.19,4.93811189]
[1734443099805,2.2302,224.23,224.2,4.93811189]
[1734443100006,2.2302,224.23,224.18,23.91742875]
[1734443100210,2.2302,224.23,224.19,7.16861072]
[1734443100504,2.2302,224.23,224.2,4.93811072]
[1734443100703,2.2302,224.23,224.21,4.93811072]
[1734443100909,2.2302,224.23,224.19,20.6904913]
[1734443101114,2.2302,224.23,224.2,4.94015185]
[1734443101309,2.2302,224.23,224.19,2.2305]
[1734443101310,2.2302,224.23,224.21,4.94015185]
[1734443101510,2.2302,224.23,224.19,20.6904913]
[1734443101813,2.2302,224.23,224.2,4.93929443]
[1734443102007,2.2302,224.23,224.21,4.93929443]
[1734443102208,2.2302,224.23,224.19,2.2305]
[1734443102405,2.2302,224.23,224.2,4.93935323]
[1734443102612,2.2302,224.22,224.21,4.93935323]
[1734443103011,2.2302,224.22,224.18,5.45743745]
[1734443103211,2.2302,224.22,224.19,4.93860403]
[1734443103530,2.2302,224.22,224.18,5.45743745]
[1734443103809,2.2302,224.22,224.19,4.93725173]
[1734443104013,6.72593344,224.24,224.2,4.93725173]
[1734443104209,6.72593344,224.24,224.18,30.64336219]
[1734443104210,2.2302,224.23,224.18,30.64336219]
[1734443104418,2.2302,224.23,224.19,4.93707306]
[1734443104715,2.2302,224.23,224.2,4.93707306]
[1734443104911,2.2302,224.23,224.18,12.18337089]
[1734443105112,2.2302,224.23,224.19,4.93570394]
[1734443105312,2.2302,224.23,224.18,12.18337089]
[1734443105313,2.2302,224.23,224.18,5.45743745]
[1734443105513,2.2302,224.23,224.19,7.16616882]
[1734443105709,2.2302,224.23,224.19,2.2305]
[1734443105913,2.2302,224.23,224.2,4.93419941]
[1734443106110,2.2303,224.22,224.18,27.41652474]
[1734443106416,6.72593344,224.24,224.19,4.93412443]
[1734443106608,2.2301,224.24,224.2,4.9327316]
[1734443106811,2.2301,224.24,224.18,25.18592474]
[1734443107116,6.72593344,224.25,224.19,4.93270963]
[1734443107318,6.72593344,224.25,224.2,4.93270963]
[1734443107515,6.72593344,224.21,224.16,18.4599913]
[1734443107715,6.72593344,224.21,224.14,2.0984]
[1734443107908,6.72593344,224.21,224.15,4.93272362]
[1734443108217,6.72593344,224.21,224.14,2.0984]
[1734443108516,6.72593344,224.21,224.14,8.82433344]
[1734443108913,6.72593344,224.21,224.16,6.72593344]
[1734443109210,6.4917,224.32,224.18,6.72593344]
[1734443109211,6.72593344,224.25,224.18,6.72593344]
[1734443109417,2.2301,224.23,224.19,4.92867326]
[1734443109713,2.2301,224.23,224.19,2.2305]
[1734443110017,2.2303,224.22,224.18,6.72593344]
[1734443110218,2.2303,224.22,224.18,8.95653344]
[1734443110418,6.72593344,224.23,224.16,20.7999913]
[1734443110609,2.2305,224.2,224.17,4.92851235]
[1734443110814,6.72593344,224.23,224.18,4.92851235]
[1734443111016,2.34,224.28,224.19,6.72593344]
[1734443111017,6.72593344,224.25,224.19,6.72593344]
[1734443111510,2.2302,224.23,224.19,8.95643344]
[1734443112110,6.72593344,224.25,224.19,8.95643344]
[1734443112111,2.2303,224.22,224.19,8.95643344]
[1734443112815,6.72593344,224.23,224.17,6.72593344]
[1734443113019,6.72593344,224.21,224.14,27.28432474]
[1734443113314,2.2308,224.16,224.15,4.92840262]
[1734443113711,6.72593344,224.19,224.14,2.0984]
[1734443114518,2.2309,224.16,224.14,2.0984]
[1734443115420,6.72593344,224.19,224.11,16.51138899]
[1734443115619,6.72593344,224.19,224.12,4.92549007]
[1734443115813,6.72593344,224.19,224.11,16.51138899]
[1734443116013,6.72593344,224.17,224.11,14.28008899]
[1734443116221,6.72593344,224.17,224.11,6.72593344]
[1734443116911,6.72593344,224.17,224.1,2.2314]
[1734443117112,6.72593344,224.19,224.12,2.2311]
[1734443117317,6.72593344,224.19,224.13,6.72593344]
[1734443118416,2.2308,224.17,224.13,8.95703344]
[1734443119317,6.72593344,224.19,224.13,6.72593344]
[1734443119521,2.2309,224.16,224.13,6.72593344]
[1734443121123,6.72593344,224.19,224.13,6.72593344]
[1734443121325,6.72593344,224.17,224.09,18.4599913]
[1734443121525,6.72593344,224.17,224.09,6.72593344]
[1734443121727,6.72593344,224.17,224.1,4.92665415]
[1734443121925,6.72593344,224.16,224.09,8.95733344]
[1734443122127,6.72593344,224.16,224.1,4.92649925]
[1734443122324,6.72593344,224.16,224.09,6.72593344]
[1734443122522,2.2311,224.14,224.1,7.1587113]
[1734443122722,2.2311,224.14,224.1,2.2314]
[1734443123028,6.72593344,224.16,224.1,2.2314]
[1734443123230,2.231,224.15,224.11,4.92731485]
[1734443123523,6.72593344,224.16,224.11,2.2313]
[1734443123830,2.2308,224.17,224.12,4.92853943]
[1734443124120,6.72593344,224.18,224.11,8.95723344]
[1734443124323,6.72593344,224.18,224.12,4.92852916]
[1734443124526,2.231,224.14,224.1,20.6913913]
[1734443124727,2.231,224.14,224.11,4.93045292]
[1734443124928,6.72593344,224.16,224.12,4.93045292]
[1734443125131,6.72593344,224.16,224.08,23.87617292]
[1734443125329,6.72593344,224.16,224.09,11.65673122]
[1734443125526,6.72593344,224.16,224.1,4.93079778]
[1734443125731,6.72593344,224.16,224.11,4.93079778]
[1734443126025,2.2313,224.12,224.09,6.72593344]
[1734443126224,6.72593344,224.16,224.1,4.93318281]
[1734443126427,6.72593344,224.16,224.08,26.10777292]
[1734443126629,6.72593344,224.16,224.09,4.93566568]
[1734443126929,6.72593344,224.16,224.1,4.93566568]
[1734443127125,2.2313,224.12,224.08,26.10777292]
[1734443127424,6.72593344,224.14,224.09,4.93566249]
[1734443127629,2.2317,224.07,224.06,4.1761]
[1734443127825,2.2317,224.07,224.06,9.11333874]
[1734443129230,2.2317,224.07,224.06,7.09703874]
[1734443129725,2.2317,224.07,224.06,4.93723874]
[1734443130327,2.232,224.05,224.04,18.4599913]
[1734443130524,2.232,224.05,224.04,43.15530843]
[1734443130927,2.2319,224.06,224.04,4.93906342]
[1734443131129,4.4608,224.21,224.05,11.66499686]
[1734443131431,6.72593344,224.15,224.08,18.4599913]
[1734443131622,6.72593344,224.15,224.09,4.93906342]
[1734443131932,6.72593344,224.13,224.1,4.93906342]
[1734443132126,6.72593344,224.13,224.08,18.4599913]
[1734443132328,2.34,224.15,224.07,2.0921]
[1734443132329,2.34,224.15,224.09,4.9400391]
[1734443132528,2.34,224.15,224.05,18.4599913]
[1734443132733,6.72593344,224.08,224.06,4.93998761]
[1734443132922,6.72593344,224.08,224.04,18.4599913]
[1734443133125,2.2318,224.06,224.05,4.94004518]
[1734443134130,8.95773344,224.06,224.05,4.94004518]
[1734443134333,2.2319,224.05,224.02,18.4599913]
[1734443134527,2.34,224.1,224.03,11.66361866]
[1734443134729,2.34,224.1,224.04,4.93768522]
[1734443135032,2.2318,224.07,224.05,4.93768522]
[1734443135231,2.34,224.1,224.03,27.41802474]
[1734443135432,2.2319,224.05,224.04,4.93751043]
[1734443136228,8.95783344,224.05,224.04,4.93751043]
[1734443136431,6.72593344,224.05,223.99,18.4599913]
[1734443136635,6.72593344,224.03,224.0,4.93618274]
[1734443136934,6.72593344,224.03,224.01,4.93618274]
[1734443137133,2.2324,224.0,223.96,69.89233272]
[1734443137327,6.72593344,224.01,223.97,43.14141818]
[1734443137527,6.72593344,224.01,223.98,4.93628537]
[1734443137734,2.2324,224.0,223.99,4.93628537]
[1734443138337,2.34,224.05,223.95,18.4599913]
[1734443138534,2.2327,223.98,223.96,43.11777125]
[1734443138734,2.2327,223.98,223.97,4.93141653]
[1734443140237,8.95863344,223.98,223.97,4.93141653]
[1734443140739,2.2325,224.0,223.94,18.4599913]
[1734443140935,2.34,224.05,223.95,45.33436005]
[1734443141137,6.72593344,224.0,223.96,43.10054207]
[1734443141332,8.95853344,223.98,223.97,4.92830929]
[1734443141533,6.72593344,223.98,223.94,18.4599913]
[1734443141740,6.72593344,223.98,223.95,4.92710055]
[1734443141939,2.2327,223.97,223.96,4.92710055]
[1734443142339,6.72593344,223.98,223.93,18.4599913]
[1734443142532,2.233,223.94,223.93,18.4599913]
[1734443142736,6.72593344,223.98,223.93,43.08920598]
[1734443142938,6.72593344,223.98,223.94,4.92584293]
[1734443143136,6.72593344,223.96,223.92,18.4599913]
[1734443143442,9.06593344,223.99,223.93,4.91543058]
[1734443143643,6.72593344,223.99,223.94,4.91543058]
[1734443143837,2.2328,223.97,223.92,18.4599913]
[1734443144039,6.72593344,223.95,223.93,4.91290069]
[1734443144242,6.72593344,223.97,223.91,18.4599913]
[1734443144440,6.72593344,223.97,223.92,4.91144041]
[1734443144637,6.72593344,223.97,223.93,4.91144041]
[1734443144840,6.72593344,223.97,223.91,18.4599913]
[1734443145039,6.72593344,223.97,223.92,4.91141779]
[1734443145241,2.233,223.94,223.9,18.4599913]
[1734443145546,2.34,224.0,223.88,18.4599913]
[1734443145742,2.2329,223.96,223.89,11.63670145]
[1734443146040,6.72593344,223.97,223.9,4.91076801]
[1734443146244,6.72593344,223.97,223.91,4.91076801]
[1734443146446,6.72593344,223.97,223.92,4.91170307]
[1734443146745,6.72593344,223.99,223.91,6.72593344]
[1734443146945,2.2328,223.97,223.92,7.14302015]
[1734443147140,2.2328,223.97,223.92,2.2332]
[1734443147343,6.72593344,223.99,223.91,6.72593344]
[1734443147638,6.72593344,223.99,223.92,4.91018341]
[1734443147943,6.72593344,223.99,223.93,4.91018341]
[1734443148143,2.2328,223.97,223.91,27.41922474]
[1734443148343,2.2328,223.97,223.92,4.91008898]
[1734443148543,6.72593344,223.99,223.93,4.91008898]
[1734443148742,2.2328,223.96,223.91,27.41922474]
[1734443148946,2.2328,223.96,223.92,4.90979819]
[1734443149144,2.2328,223.96,223.93,4.90979819]
[1734443149344,2.2328,223.96,223.91,25.18592474]
[1734443149536,2.2327,223.97,223.92,7.14226465]
[1734443149846,6.72593344,224.0,223.93,4.90906465]
[1734443150046,6.72593344,224.0,223.94,4.90906465]
[1734443150245,6.72593344,224.0,223.95,4.90910284]
[1734443150246,2.2325,224.0,223.95,4.90910284]
[1734443150444,6.72593344,223.98,223.93,18.4599913]
[1734443150748,6.72593344,223.98,223.94,4.90955261]
[1734443151042,2.233,223.95,223.93,18.4599913]
[1734443151248,2.233,223.95,223.94,4.9095251]
[1734443151648,2.2328,223.96,223.94,4.9095251]
[1734443151845,2.2328,223.96,223.92,18.4599913]
[1734443152146,2.2328,223.96,223.93,4.90981093]
[1734443152346,2.233,223.95,223.94,4.90981093]
[1734443153344,2.2328,223.97,223.94,4.90981093]
[1734443153547,2.2328,223.97,223.92,18.4599913]
[1734443153748,2.34,224.04,223.93,4.91147275]
[1734443153949,8.95853344,223.99,223.94,7.14447275]
[1734443154150,8.95853344,223.99,223.94,2.233]
[1734443154344,6.72593344,223.99,223.94,2.233]
[1734443154549,2.2327,223.98,223.94,2.233]
[1734443156852,2.2328,223.97,223.94,2.233]
[1734443157347,2.2328,223.97,223.95,4.91809785]
[1734443157551,2.2328,223.97,223.94,6.17440127]
[1734443157747,2.34,224.03,223.93,6.17440127]
[1734443157954,2.34,224.03,223.94,4.91816288]
[1734443157955,6.72593344,223.98,223.94,4.91816288]
[1734443158255,6.72593344,223.98,223.93,6.17440127]
[1734443158443,6.72593344,223.98,223.94,11.09451717]
[1734443158648,6.72593344,223.98,223.95,4.9201159]
[1734443158845,2.2327,223.97,223.93,24.63439257]
[1734443159052,2.2327,223.97,223.94,4.92007449]
[1734443159248,2.2327,223.97,223.93,6.17440127]
[1734443159549,2.2327,223.97,223.95,6.17440127]
[1734443159949,2.2327,223.97,223.94,26.86739257]
[1734443160149,2.2327,223.97,223.95,4.92255563]
[1734443160349,2.2327,223.97,223.96,4.92467876]
[1734443162058,2.2327,223.97,223.95,6.17440127]
[1734443163459,6.72593344,223.98,223.95,6.17440127]
[1734443163757,2.2328,223.96,223.95,6.17440127]
[1734443163959,2.2328,223.96,223.95,11.10581831]
[1734443164157,8.95873344,223.96,223.95,11.10581831]
[1734443164454,8.95873344,223.96,223.92,49.19954142]
[1734443164455,6.72593344,223.96,223.92,24.63439257]
[1734443164657,2.34,223.98,223.92,24.63439257]
[1734443164658,6.72593344,223.93,223.92,24.63439257]
[1734443164855,6.72593344,223.93,223.92,49.29981445]
[1734443165159,6.72593344,223.93,223.92,11.10748564]
[1734443165355,2.2332,223.92,223.91,24.63439257]
[1734443165656,2.2332,223.92,223.91,49.30354319]